[Event "*** Titled Tuesday Blitz"]
[Site "Chess.com"]
[Date "2020.05.12"]
[Round "8"]
[White "GMaka"]
[Black "DinaBelenkaya"]
[Result "1-0"]
[WhiteElo "2364"]
[BlackElo "2132"]
[TimeControl "180+1"]
[EndTime "11:33:58 PDT"]
[Termination "GMaka won by resignation"]

1. Nf3 {[%clk 0:03:00.9]} 1... d5 {[%clk 0:02:59]} 2. c4 {[%clk 0:02:58.5]} 2...
d4 {[%clk 0:02:56.6]} 3. g3 {[%clk 0:02:53.1]} 3... c5 {[%clk 0:02:55.6]} 4. Bg2
{[%clk 0:02:53.6]} 4... Nc6 {[%clk 0:02:54.1]} 5. O-O {[%clk 0:02:54.5]} 5... e5
{[%clk 0:02:42.9]} 6. e3 {[%clk 0:02:50.4]} 6... Be7 {[%clk 0:02:34.8]} 7. exd4
{[%clk 0:02:39.4]} 7... exd4 {[%clk 0:02:22.7]} 8. d3 {[%clk 0:02:35.4]} 8...
Nf6 {[%clk 0:02:21.3]} 9. Bg5 {[%clk 0:02:29.2]} 9... O-O {[%clk 0:02:21.1]} 10.
Nbd2 {[%clk 0:02:29.4]} 10... h6 {[%clk 0:02:05.5]} 11. Bxf6 {[%clk 0:02:28]}
11... Bxf6 {[%clk 0:02:06.4]} 12. Ne4 {[%clk 0:02:28.7]} 12... Be7 {[%clk
0:02:06.4]} 13. a3 {[%clk 0:02:29.2]} 13... f5 {[%clk 0:02:02.1]} 14. Ned2
{[%clk 0:02:28.9]} 14... a5 {[%clk 0:01:58.8]} 15. Re1 {[%clk 0:02:20.7]} 15...
f4 {[%clk 0:01:56.2]} 16. Ne5 {[%clk 0:02:12.5]} 16... Nxe5 {[%clk 0:01:44.8]}
17. Rxe5 {[%clk 0:02:13.4]} 17... fxg3 {[%clk 0:01:11.8]} 18. hxg3 {[%clk
0:01:54.5]} 18... Bd6 {[%clk 0:01:08.6]} 19. Bd5+ {[%clk 0:01:44.5]} 19... Kh8
{[%clk 0:01:04]} 20. Rh5 {[%clk 0:01:30.4]} 20... Bf5 {[%clk 0:00:50.6]} 21. Ne4
{[%clk 0:01:26.2]} 21... Bg6 {[%clk 0:00:50.5]} 22. Rh4 {[%clk 0:01:12.8]} 22...
Be7 {[%clk 0:00:50.5]} 23. Rh2 {[%clk 0:00:57.3]} 23... Qb6 {[%clk 0:00:44]} 24.
Qg4 {[%clk 0:00:46.2]} 24... Bf5 {[%clk 0:00:33]} 25. Qe2 {[%clk 0:00:42.3]}
25... Rae8 {[%clk 0:00:31.9]} 26. Kg2 {[%clk 0:00:38.4]} 26... Bd8 {[%clk
0:00:20.2]} 27. Rah1 {[%clk 0:00:38.7]} 27... Qg6 {[%clk 0:00:15.5]} 28. Qh5
{[%clk 0:00:32.5]} 28... Qxh5 {[%clk 0:00:12.5]} 29. Rxh5 {[%clk 0:00:33.4]}
29... b6 {[%clk 0:00:11.8]} 30. Nd6 {[%clk 0:00:30.3]} 30... Bg6 {[%clk
0:00:09.5]} 31. Nxe8 {[%clk 0:00:28.8]} 31... Bxh5 {[%clk 0:00:09.9]} 32. Nxg7
{[%clk 0:00:22.4]} 32... Kxg7 {[%clk 0:00:07.5]} 33. Rxh5 {[%clk 0:00:22.2]}
33... Kg6 {[%clk 0:00:06]} 34. Re5 {[%clk 0:00:19.8]} 34... Bf6 {[%clk
0:00:05.6]} 35. Re6 {[%clk 0:00:19.5]} 35... Kg7 {[%clk 0:00:03.9]} 36. Rxb6
{[%clk 0:00:18.7]} 36... Re8 {[%clk 0:00:03.1]} 37. Rb7+ {[%clk 0:00:19.1]}
37... Kg6 {[%clk 0:00:03]} 38. Be4+ {[%clk 0:00:19.3]} 38... Kg5 {[%clk
0:00:02.2]} 39. f4+ {[%clk 0:00:18.8]} 39... Kg4 {[%clk 0:00:02.2]} 40. Rb6
{[%clk 0:00:18.8]} 40... Rf8 {[%clk 0:00:01.7]} 41. b4 {[%clk 0:00:17.8]} 41...
h5 {[%clk 0:00:02.1]} 42. bxc5 {[%clk 0:00:16.2]} 42... h4 {[%clk 0:00:02.1]}
43. Bf3+ {[%clk 0:00:16.5]} 43... Kf5 {[%clk 0:00:01.7]} 44. Be4+ {[%clk
0:00:17]} 44... Kg4 {[%clk 0:00:02]} 45. gxh4 {[%clk 0:00:16.8]} 45... Kxf4
{[%clk 0:00:02.4]} 46. Rb2 {[%clk 0:00:14.2]} 46... Rg8+ {[%clk 0:00:02.8]} 47.
Kh2 {[%clk 0:00:10.1]} 47... Be5 {[%clk 0:00:03.1]} 48. Rg2 {[%clk 0:00:06.7]}
48... Ke3+ {[%clk 0:00:02.8]} 49. Kh3 {[%clk 0:00:05.7]} 49... Rh8 {[%clk
0:00:03]} 50. c6 {[%clk 0:00:04.7]} 50... Bf6 {[%clk 0:00:03.3]} 51. Rg4 {[%clk
0:00:04.7]} 51... Rc8 {[%clk 0:00:02.8]} 52. Rg6 {[%clk 0:00:03.4]} 52... Be5
{[%clk 0:00:03]} 53. h5 {[%clk 0:00:03.3]} 53... Rc7 {[%clk 0:00:03.1]} 54. Kg4
{[%clk 0:00:04.2]} 54... Rg7 {[%clk 0:00:02.9]} 55. Kf5 {[%clk 0:00:05.1]} 55...
Rf7+ {[%clk 0:00:03]} 56. Kxe5 {[%clk 0:00:04.9]} 56... Re7+ {[%clk 0:00:02.7]}
57. Kd6 {[%clk 0:00:05.8]} 1-0

[Event "*** Titled Tuesday Blitz"]
[Site "Chess.com"]
[Date "2020.05.12"]
[Round "8"]
[White "Mimsychess"]
[Black "JoachimMouhamad"]
[Result "1/2-1/2"]
[WhiteElo "2329"]
[BlackElo "2219"]
[TimeControl "180+1"]
[EndTime "11:33:58 PDT"]
[Termination "Game drawn by repetition"]

1. e4 {[%clk 0:03:00.9]} 1... e5 {[%clk 0:02:58.6]} 2. Nf3 {[%clk 0:02:59.5]}
2... Nc6 {[%clk 0:02:58.7]} 3. d4 {[%clk 0:02:59.4]} 3... exd4 {[%clk
0:02:58.5]} 4. Nxd4 {[%clk 0:03:00.2]} 4... Nf6 {[%clk 0:02:58.5]} 5. Nc3 {[%clk
0:02:59.9]} 5... Bb4 {[%clk 0:02:58]} 6. Nxc6 {[%clk 0:02:57.6]} 6... bxc6
{[%clk 0:02:57.2]} 7. Bd3 {[%clk 0:02:58]} 7... O-O {[%clk 0:02:55.9]} 8. O-O
{[%clk 0:02:57.4]} 8... d5 {[%clk 0:02:56.1]} 9. exd5 {[%clk 0:02:56]} 9... cxd5
{[%clk 0:02:57]} 10. h3 {[%clk 0:02:54.8]} 10... c6 {[%clk 0:02:53.3]} 11. Qf3
{[%clk 0:02:53.1]} 11... Re8 {[%clk 0:02:50.6]} 12. Ne2 {[%clk 0:02:36.6]} 12...
Ne4 {[%clk 0:02:36.5]} 13. Nd4 {[%clk 0:02:25.7]} 13... Bd7 {[%clk 0:02:30.4]}
14. c3 {[%clk 0:02:22.5]} 14... Bd6 {[%clk 0:02:29.3]} 15. Bf4 {[%clk 0:02:22]}
15... Bxf4 {[%clk 0:02:21.8]} 16. Qxf4 {[%clk 0:02:22.1]} 16... Rb8 {[%clk
0:02:18.6]} 17. Bxe4 {[%clk 0:02:15.8]} 17... dxe4 {[%clk 0:02:13.2]} 18. Rfd1
{[%clk 0:02:02.7]} 18... Qe7 {[%clk 0:01:50.2]} 19. b4 {[%clk 0:01:55.2]} 19...
c5 {[%clk 0:01:41.5]} 20. bxc5 {[%clk 0:01:45.3]} 20... Qxc5 {[%clk 0:01:41]}
21. Nb3 {[%clk 0:01:35.9]} 21... Qe7 {[%clk 0:01:30.2]} 22. Rd6 {[%clk
0:01:34.8]} 22... Ba4 {[%clk 0:01:14.6]} 23. Nc5 {[%clk 0:01:32.4]} 23... Bc2
{[%clk 0:01:12.2]} 24. Rd7 {[%clk 0:01:24.8]} 24... Qf8 {[%clk 0:00:42]} 25. Rc1
{[%clk 0:01:21.4]} 25... Rb1 {[%clk 0:00:27.2]} 26. Rxb1 {[%clk 0:01:17.9]}
26... Bxb1 {[%clk 0:00:28.1]} 27. a4 {[%clk 0:01:01.7]} 27... a5 {[%clk
0:00:27.1]} 28. Qc7 {[%clk 0:00:56.5]} 28... Ba2 {[%clk 0:00:21.3]} 29. Qd6
{[%clk 0:00:44.3]} 29... Qxd6 {[%clk 0:00:19.8]} 30. Rxd6 {[%clk 0:00:45.2]}
30... g6 {[%clk 0:00:15.1]} 31. Ra6 {[%clk 0:00:43]} 31... e3 {[%clk 0:00:15.3]}
32. fxe3 {[%clk 0:00:42.5]} 32... Rxe3 {[%clk 0:00:16.2]} 33. Rxa5 {[%clk
0:00:35.3]} 33... Rxc3 {[%clk 0:00:16.2]} 34. Nd7 {[%clk 0:00:34.2]} 34... Be6
{[%clk 0:00:12.8]} 35. Nf6+ {[%clk 0:00:30.5]} 35... Kg7 {[%clk 0:00:12.2]} 36.
Ne4 {[%clk 0:00:31.4]} 36... Ra3 {[%clk 0:00:11.5]} 37. Nc5 {[%clk 0:00:30.6]}
37... Ra2 {[%clk 0:00:11]} 38. Nxe6+ {[%clk 0:00:29.7]} 38... fxe6 {[%clk
0:00:11.9]} 39. Ra7+ {[%clk 0:00:29.9]} 39... Kf6 {[%clk 0:00:10.9]} 40. a5
{[%clk 0:00:25.5]} 40... h5 {[%clk 0:00:10.6]} 41. a6 {[%clk 0:00:25.6]} 41...
h4 {[%clk 0:00:10.2]} 42. Ra8 {[%clk 0:00:25]} 42... Ke5 {[%clk 0:00:10.3]} 43.
a7 {[%clk 0:00:24.9]} 43... g5 {[%clk 0:00:09.9]} 44. Kf1 {[%clk 0:00:24.5]}
44... Ke4 {[%clk 0:00:09.9]} 45. Ke1 {[%clk 0:00:21]} 45... e5 {[%clk
0:00:10.2]} 46. Kd1 {[%clk 0:00:20.5]} 46... Ke3 {[%clk 0:00:10.5]} 47. Kc1
{[%clk 0:00:16.3]} 47... e4 {[%clk 0:00:10.2]} 48. Kb1 {[%clk 0:00:15.9]} 48...
Ra5 {[%clk 0:00:10.6]} 49. Kc2 {[%clk 0:00:14.3]} 49... Ke2 {[%clk 0:00:10.6]}
50. Re8 {[%clk 0:00:12.3]} 50... Ra2+ {[%clk 0:00:09.7]} 51. Kb3 {[%clk
0:00:10.9]} 51... Rxa7 {[%clk 0:00:10.6]} 52. Rxe4+ {[%clk 0:00:10.8]} 52... Kf2
{[%clk 0:00:10.4]} 53. Rg4 {[%clk 0:00:11.2]} 53... Rg7 {[%clk 0:00:09.3]} 54.
Kc4 {[%clk 0:00:11.3]} 54... Ke3 {[%clk 0:00:08.6]} 55. Kc3 {[%clk 0:00:10.4]}
55... Rc7+ {[%clk 0:00:07.9]} 56. Kb2 {[%clk 0:00:09.7]} 56... Rc5 {[%clk
0:00:07.8]} 57. Kb3 {[%clk 0:00:08.7]} 57... Kf2 {[%clk 0:00:07.4]} 58. Kb4
{[%clk 0:00:07.8]} 58... Rf5 {[%clk 0:00:06.5]} 59. Kc4 {[%clk 0:00:07.4]} 59...
Ke3 {[%clk 0:00:06.9]} 60. Kc3 {[%clk 0:00:06.3]} 60... Re5 {[%clk 0:00:07]} 61.
Kc2 {[%clk 0:00:05.1]} 61... Rf5 {[%clk 0:00:07.5]} 62. Kc3 {[%clk 0:00:05.1]}
62... Rd5 {[%clk 0:00:07.5]} 63. Kc4 {[%clk 0:00:05.2]} 63... Rf5 {[%clk
0:00:07.7]} 64. Kc3 {[%clk 0:00:05.4]} 1/2-1/2

[Event "*** Titled Tuesday Blitz"]
[Site "Chess.com"]
[Date "2020.05.12"]
[Round "8"]
[White "Saloni1299"]
[Black "Charlottemillard17"]
[Result "1-0"]
[WhiteElo "2291"]
[BlackElo "1418"]
[TimeControl "180+1"]
[EndTime "11:34:04 PDT"]
[Termination "Saloni1299 won on time"]

1. e4 {[%clk 0:03:00.9]} 1... e5 {[%clk 0:02:58.7]} 2. Nf3 {[%clk 0:03:00.5]}
2... Nc6 {[%clk 0:02:58.3]} 3. Bb5 {[%clk 0:03:00.2]} 3... a6 {[%clk 0:02:57.5]}
4. Ba4 {[%clk 0:02:59.5]} 4... Bc5 {[%clk 0:02:56.2]} 5. c3 {[%clk 0:02:58.6]}
5... b5 {[%clk 0:02:52.8]} 6. Bb3 {[%clk 0:02:56.5]} 6... Nf6 {[%clk 0:02:52.3]}
7. O-O {[%clk 0:02:43]} 7... O-O {[%clk 0:02:51.7]} 8. d4 {[%clk 0:02:42.9]}
8... exd4 {[%clk 0:02:47.5]} 9. cxd4 {[%clk 0:02:42.5]} 9... Bb4 {[%clk
0:02:38.9]} 10. e5 {[%clk 0:02:40]} 10... Ne8 {[%clk 0:02:20.1]} 11. a3 {[%clk
0:02:39.9]} 11... Ba5 {[%clk 0:02:18.9]} 12. d5 {[%clk 0:02:40.2]} 12... Na7
{[%clk 0:02:08.3]} 13. d6 {[%clk 0:02:32.7]} 13... cxd6 {[%clk 0:02:07.3]} 14.
exd6 {[%clk 0:02:32.9]} 14... Qf6 {[%clk 0:02:05.6]} 15. Qd5 {[%clk 0:02:05.1]}
15... Rb8 {[%clk 0:01:42.2]} 16. Qd4 {[%clk 0:01:55.5]} 16... Qxd6 {[%clk
0:01:34.1]} 17. Qxa7 {[%clk 0:01:53.5]} 17... Bb6 {[%clk 0:01:24.7]} 18. Rd1
{[%clk 0:01:48.6]} 18... Qxd1+ {[%clk 0:01:23.4]} 19. Bxd1 {[%clk 0:01:47.6]}
19... Bxa7 {[%clk 0:01:23.8]} 20. Bf4 {[%clk 0:01:47.6]} 20... Ra8 {[%clk
0:01:21.9]} 21. Nc3 {[%clk 0:01:47.4]} 21... Nf6 {[%clk 0:01:20]} 22. Ne5 {[%clk
0:01:40.8]} 22... Re8 {[%clk 0:01:07.1]} 23. Bf3 {[%clk 0:01:40.5]} 23... Rb8
{[%clk 0:00:55.3]} 24. Nxf7 {[%clk 0:01:28.2]} 24... Kxf7 {[%clk 0:00:45.5]} 25.
Bxb8 {[%clk 0:01:26.7]} 25... Bxb8 {[%clk 0:00:45.9]} 26. Rd1 {[%clk 0:01:22.5]}
26... Be5 {[%clk 0:00:40.1]} 27. h3 {[%clk 0:01:21.6]} 27... Bxc3 {[%clk
0:00:38.9]} 28. bxc3 {[%clk 0:01:21.9]} 28... Rd8 {[%clk 0:00:35.9]} 29. Rd6
{[%clk 0:01:20.3]} 29... Ke7 {[%clk 0:00:33.9]} 30. Rd4 {[%clk 0:01:15.8]} 30...
d6 {[%clk 0:00:31.4]} 31. a4 {[%clk 0:01:16.1]} 31... bxa4 {[%clk 0:00:30.5]}
32. Rxa4 {[%clk 0:01:15.8]} 32... Rd7 {[%clk 0:00:26.6]} 33. Kf1 {[%clk
0:01:09.3]} 33... d5 {[%clk 0:00:23.7]} 34. Ke2 {[%clk 0:01:06.2]} 34... Ne4
{[%clk 0:00:22.5]} 35. Bxe4 {[%clk 0:01:04.5]} 35... dxe4 {[%clk 0:00:22.5]} 36.
Rxe4+ {[%clk 0:01:05]} 36... Kf6 {[%clk 0:00:21]} 37. Rf4+ {[%clk 0:01:01]}
37... Ke5 {[%clk 0:00:20.2]} 38. Rh4 {[%clk 0:01:01]} 38... h6 {[%clk
0:00:19.2]} 39. Ke3 {[%clk 0:01:00.9]} 39... Rc7 {[%clk 0:00:18.4]} 40. c4
{[%clk 0:00:54]} 40... Rc5 {[%clk 0:00:17.2]} 41. Re4+ {[%clk 0:00:44.8]} 41...
Kd6 {[%clk 0:00:16.2]} 42. Kd4 {[%clk 0:00:44.4]} 42... a5 {[%clk 0:00:15.1]}
43. f4 {[%clk 0:00:42.7]} 43... a4 {[%clk 0:00:14.5]} 44. Re3 {[%clk 0:00:43.1]}
44... Ra5 {[%clk 0:00:12.5]} 45. Rc3 {[%clk 0:00:39.6]} 45... a3 {[%clk
0:00:11.7]} 46. c5+ {[%clk 0:00:39.9]} 46... Rxc5 {[%clk 0:00:11.3]} 47. Rxc5
{[%clk 0:00:38.9]} 47... a2 {[%clk 0:00:10]} 48. Ra5 {[%clk 0:00:38.9]} 48...
Be6 {[%clk 0:00:09.8]} 49. f5 {[%clk 0:00:36.5]} 49... Bxf5 {[%clk 0:00:09]} 50.
Rxa2 {[%clk 0:00:36.1]} 50... Be6 {[%clk 0:00:08.1]} 51. Ra6+ {[%clk 0:00:36.4]}
51... Ke7 {[%clk 0:00:08.4]} 52. Ke5 {[%clk 0:00:36.5]} 52... Bc4 {[%clk
0:00:07.1]} 53. Ra7+ {[%clk 0:00:36.5]} 53... Kf8 {[%clk 0:00:07.1]} 54. h4
{[%clk 0:00:36.7]} 54... Bf1 {[%clk 0:00:06]} 55. g4 {[%clk 0:00:36.3]} 55...
Bh3 {[%clk 0:00:05.3]} 56. g5 {[%clk 0:00:36.3]} 56... hxg5 {[%clk 0:00:03.7]}
57. hxg5 {[%clk 0:00:36.6]} 57... Bg4 {[%clk 0:00:03.4]} 58. g6 {[%clk
0:00:36.5]} 58... Bh5 {[%clk 0:00:01.8]} 59. Kf5 {[%clk 0:00:35.8]} 59... Bxg6+
{[%clk 0:00:01.2]} 60. Kxg6 {[%clk 0:00:35.2]} 1-0

[Event "*** Titled Tuesday Blitz"]
[Site "Chess.com"]
[Date "2020.05.12"]
[Round "8"]
[White "Khamrakulov_Djurabek"]
[Black "DrVitman"]
[Result "1-0"]
[WhiteElo "2801"]
[BlackElo "2559"]
[TimeControl "180+1"]
[EndTime "11:34:07 PDT"]
[Termination "Khamrakulov_Djurabek won on time"]

1. e4 {[%clk 0:03:00.9]} 1... c5 {[%clk 0:02:59.1]} 2. c3 {[%clk 0:03:00.9]}
2... d5 {[%clk 0:02:53.9]} 3. exd5 {[%clk 0:03:00.8]} 3... Qxd5 {[%clk
0:02:54.8]} 4. d4 {[%clk 0:03:00.1]} 4... Nf6 {[%clk 0:02:55.1]} 5. Nf3 {[%clk
0:03:00]} 5... e6 {[%clk 0:02:52.5]} 6. Be3 {[%clk 0:02:57.9]} 6... cxd4 {[%clk
0:02:51.8]} 7. cxd4 {[%clk 0:02:57.7]} 7... Bd7 {[%clk 0:02:52.1]} 8. Nc3 {[%clk
0:02:57.9]} 8... Bb4 {[%clk 0:02:52.1]} 9. Bd3 {[%clk 0:02:57]} 9... Bxc3+
{[%clk 0:02:41.6]} 10. bxc3 {[%clk 0:02:56.7]} 10... Bb5 {[%clk 0:02:42]} 11.
O-O {[%clk 0:02:32]} 11... Bxd3 {[%clk 0:02:41]} 12. Qxd3 {[%clk 0:02:32.2]}
12... Nc6 {[%clk 0:02:41.4]} 13. Rfb1 {[%clk 0:02:30.1]} 13... b6 {[%clk
0:02:40.8]} 14. Bg5 {[%clk 0:02:22.1]} 14... O-O {[%clk 0:02:18.4]} 15. Bxf6
{[%clk 0:02:21.9]} 15... gxf6 {[%clk 0:02:19.3]} 16. Rb5 {[%clk 0:02:21.9]}
16... Qd6 {[%clk 0:01:57.9]} 17. Rh5 {[%clk 0:02:20.4]} 17... f5 {[%clk
0:01:54]} 18. Ng5 {[%clk 0:01:53.3]} 18... f6 {[%clk 0:01:52.8]} 19. Nxh7 {[%clk
0:01:53]} 19... Rf7 {[%clk 0:01:52.3]} 20. Qh3 {[%clk 0:01:52.6]} 20... Qe7
{[%clk 0:01:35.2]} 21. Nxf6+ {[%clk 0:01:26.4]} 21... Qxf6 {[%clk 0:01:34.6]}
22. Rh6 {[%clk 0:01:26.7]} 22... Qg7 {[%clk 0:01:33.6]} 23. Rxe6 {[%clk
0:01:25.5]} 23... Ne7 {[%clk 0:01:24.8]} 24. Rae1 {[%clk 0:01:23]} 24... Ng6
{[%clk 0:01:20.5]} 25. Qg3 {[%clk 0:00:57]} 25... Nf8 {[%clk 0:01:17.1]} 26. Qf3
{[%clk 0:00:56.3]} 26... Nxe6 {[%clk 0:01:08.3]} 27. Qxa8+ {[%clk 0:00:56.1]}
27... Nf8 {[%clk 0:01:07.1]} 28. Qd5 {[%clk 0:00:55.7]} 28... Qf6 {[%clk
0:01:03.1]} 29. f4 {[%clk 0:00:54.5]} 29... Kg7 {[%clk 0:01:02.5]} 30. Re5
{[%clk 0:00:53.9]} 30... Ng6 {[%clk 0:00:58]} 31. Re8 {[%clk 0:00:44.5]} 31...
Nxf4 {[%clk 0:00:40.4]} 32. Qa8 {[%clk 0:00:44.4]} 32... Re7 {[%clk 0:00:31]}
33. g3 {[%clk 0:00:22.4]} 33... Ne2+ {[%clk 0:00:27.7]} 34. Kf2 {[%clk
0:00:22.5]} 34... Nxc3 {[%clk 0:00:17.8]} 35. Rg8+ {[%clk 0:00:18.5]} 35... Kh7
{[%clk 0:00:17.5]} 36. Rd8 {[%clk 0:00:15.1]} 36... Ne4+ {[%clk 0:00:17.2]} 37.
Kg1 {[%clk 0:00:14.2]} 37... Ng5 {[%clk 0:00:14.5]} 38. Qd5 {[%clk 0:00:13.8]}
38... Qe6 {[%clk 0:00:12.7]} 39. Qxe6 {[%clk 0:00:10.9]} 39... Nxe6 {[%clk
0:00:13.6]} 40. Rd6 {[%clk 0:00:10.2]} 40... Kg7 {[%clk 0:00:12.8]} 41. Kf2
{[%clk 0:00:10.5]} 41... Kf7 {[%clk 0:00:11.6]} 42. h4 {[%clk 0:00:10.8]} 42...
Rc7 {[%clk 0:00:08.5]} 43. d5 {[%clk 0:00:11]} 43... Nc5 {[%clk 0:00:08.1]} 44.
Ke3 {[%clk 0:00:10.9]} 44... Ne4 {[%clk 0:00:07.7]} 45. Rh6 {[%clk 0:00:11]}
45... Rc3+ {[%clk 0:00:07.5]} 46. Kf4 {[%clk 0:00:10.8]} 46... Rxg3 {[%clk
0:00:04.8]} 47. Kxf5 {[%clk 0:00:10.2]} 47... Nc5 {[%clk 0:00:03.4]} 48. Rh7+
{[%clk 0:00:10]} 48... Ke8 {[%clk 0:00:03.8]} 49. Rxa7 {[%clk 0:00:09.8]} 49...
Rd3 {[%clk 0:00:03.9]} 50. Ke5 {[%clk 0:00:09.5]} 50... Rh3 {[%clk 0:00:04.1]}
51. Rh7 {[%clk 0:00:08.6]} 51... Rh2 {[%clk 0:00:01.8]} 52. Kd6 {[%clk
0:00:07.3]} 52... Ne4+ {[%clk 0:00:02.2]} 53. Kc6 {[%clk 0:00:07]} 53... Rd2
{[%clk 0:00:01.9]} 54. Rh5 {[%clk 0:00:04.9]} 54... Nf6 {[%clk 0:00:01.8]} 55.
Rf5 {[%clk 0:00:04.9]} 55... Kf7 {[%clk 0:00:02.4]} 56. h5 {[%clk 0:00:03.1]}
56... Kg7 {[%clk 0:00:03]} 57. h6+ {[%clk 0:00:03]} 57... Kg6 {[%clk 0:00:03.2]}
58. Re5 {[%clk 0:00:03.1]} 58... Kxh6 {[%clk 0:00:02.6]} 59. d6 {[%clk
0:00:03.7]} 59... Kg6 {[%clk 0:00:02.6]} 60. Re6 {[%clk 0:00:03.5]} 60... Kf7
{[%clk 0:00:02.8]} 61. Re7+ {[%clk 0:00:04]} 61... Kg6 {[%clk 0:00:03.4]} 62. a4
{[%clk 0:00:04.5]} 62... Rd4 {[%clk 0:00:02.9]} 63. Ra7 {[%clk 0:00:04]} 1-0

[Event "*** Titled Tuesday Blitz"]
[Site "Chess.com"]
[Date "2020.05.12"]
[Round "8"]
[White "Camels1981"]
[Black "umngqusho"]
[Result "1-0"]
[WhiteElo "2318"]
[BlackElo "2443"]
[TimeControl "180+1"]
[EndTime "11:34:08 PDT"]
[Termination "Camels1981 won on time"]

1. e4 {[%clk 0:02:59.4]} 1... e5 {[%clk 0:02:59.2]} 2. Nf3 {[%clk 0:02:58]} 2...
Nc6 {[%clk 0:02:58.8]} 3. Bb5 {[%clk 0:02:57.8]} 3... a6 {[%clk 0:02:58.5]} 4.
Ba4 {[%clk 0:02:57.5]} 4... Nf6 {[%clk 0:02:58.6]} 5. d4 {[%clk 0:02:57.9]} 5...
exd4 {[%clk 0:02:58]} 6. O-O {[%clk 0:02:58.2]} 6... Be7 {[%clk 0:02:56.8]} 7.
Re1 {[%clk 0:02:55.2]} 7... O-O {[%clk 0:02:54]} 8. e5 {[%clk 0:02:51.1]} 8...
Nd5 {[%clk 0:02:53.8]} 9. Nxd4 {[%clk 0:02:52]} 9... Nxd4 {[%clk 0:02:51.5]} 10.
Qxd4 {[%clk 0:02:52.9]} 10... Nb6 {[%clk 0:02:51.9]} 11. Bb3 {[%clk 0:02:48.5]}
11... d5 {[%clk 0:02:51.5]} 12. exd6 {[%clk 0:02:37.6]} 12... Bf6 {[%clk
0:02:39.3]} 13. Qf4 {[%clk 0:02:34.7]} 13... Qxd6 {[%clk 0:02:37.8]} 14. Qxd6
{[%clk 0:02:33.3]} 14... cxd6 {[%clk 0:02:38.7]} 15. Nc3 {[%clk 0:02:33.4]}
15... Bxc3 {[%clk 0:02:23]} 16. bxc3 {[%clk 0:02:32.6]} 16... d5 {[%clk
0:02:21.1]} 17. Ba3 {[%clk 0:02:30.5]} 17... Be6 {[%clk 0:02:07.1]} 18. Bxf8
{[%clk 0:02:28.7]} 18... Kxf8 {[%clk 0:02:05.8]} 19. Rab1 {[%clk 0:02:29]} 19...
Rc8 {[%clk 0:02:00]} 20. a4 {[%clk 0:02:28.3]} 20... Rxc3 {[%clk 0:01:52.5]} 21.
a5 {[%clk 0:02:25.4]} 21... Nd7 {[%clk 0:01:51]} 22. f3 {[%clk 0:01:52.7]} 22...
Rc7 {[%clk 0:01:21.8]} 23. Kf2 {[%clk 0:01:47]} 23... Nf6 {[%clk 0:01:07.8]} 24.
Ra1 {[%clk 0:01:41.5]} 24... Ke7 {[%clk 0:01:06.5]} 25. Ra4 {[%clk 0:01:39.9]}
25... Kd6 {[%clk 0:01:05.6]} 26. Rb4 {[%clk 0:01:32.4]} 26... Nd7 {[%clk
0:01:01.1]} 27. Rd1 {[%clk 0:01:24.7]} 27... Kc5 {[%clk 0:00:54.9]} 28. Rbd4
{[%clk 0:01:13.7]} 28... Nf6 {[%clk 0:00:53.9]} 29. g4 {[%clk 0:01:06.1]} 29...
h6 {[%clk 0:00:52.6]} 30. h4 {[%clk 0:01:02.9]} 30... g5 {[%clk 0:00:51.9]} 31.
hxg5 {[%clk 0:00:53.8]} 31... hxg5 {[%clk 0:00:52.8]} 32. c4 {[%clk 0:00:54.2]}
32... dxc4 {[%clk 0:00:48.8]} 33. Bxc4 {[%clk 0:00:51.6]} 33... Rc6 {[%clk
0:00:27.9]} 34. Bxe6 {[%clk 0:00:50.9]} 34... Rxe6 {[%clk 0:00:26.2]} 35. Rd8
{[%clk 0:00:50.7]} 35... Kb5 {[%clk 0:00:18.7]} 36. R8d6 {[%clk 0:00:44.5]}
36... Kxa5 {[%clk 0:00:17.2]} 37. Rxe6 {[%clk 0:00:44.2]} 37... fxe6 {[%clk
0:00:18.1]} 38. Rd6 {[%clk 0:00:44.2]} 38... Nd5 {[%clk 0:00:18.2]} 39. Rxe6
{[%clk 0:00:43.7]} 39... b5 {[%clk 0:00:18.3]} 40. Re5 {[%clk 0:00:43.7]} 40...
Nf4 {[%clk 0:00:17.9]} 41. Ke3 {[%clk 0:00:41.6]} 41... Ng2+ {[%clk 0:00:16.4]}
42. Kd4 {[%clk 0:00:39]} 42... Kb4 {[%clk 0:00:16.4]} 43. Rxg5 {[%clk
0:00:38.3]} 43... a5 {[%clk 0:00:16.7]} 44. Rg8 {[%clk 0:00:37.4]} 44... a4
{[%clk 0:00:16.7]} 45. g5 {[%clk 0:00:37.5]} 45... Nf4 {[%clk 0:00:16.8]} 46.
Ke4 {[%clk 0:00:36.2]} 46... Ne6 {[%clk 0:00:16.3]} 47. Ke5 {[%clk 0:00:34.8]}
47... Nc5 {[%clk 0:00:15.7]} 48. g6 {[%clk 0:00:33.8]} 48... a3 {[%clk 0:00:16]}
49. g7 {[%clk 0:00:33.6]} 49... a2 {[%clk 0:00:15.7]} 50. Ra8 {[%clk 0:00:31.6]}
50... Na4 {[%clk 0:00:16]} 51. g8=Q {[%clk 0:00:30.9]} 51... a1=Q+ {[%clk
0:00:16.2]} 52. Kf5 {[%clk 0:00:31.1]} 52... Qb1+ {[%clk 0:00:15.5]} 53. Kf4
{[%clk 0:00:29.6]} 53... Nc5 {[%clk 0:00:15.6]} 54. Qf8 {[%clk 0:00:25.7]} 54...
Qc1+ {[%clk 0:00:14.6]} 55. Kf5 {[%clk 0:00:25.4]} 55... Kc4 {[%clk 0:00:14.1]}
56. Rc8 {[%clk 0:00:24.1]} 56... Qc2+ {[%clk 0:00:13.6]} 57. Kg4 {[%clk
0:00:23.1]} 57... Qg6+ {[%clk 0:00:12.2]} 58. Kf4 {[%clk 0:00:22.8]} 58... Qb6
{[%clk 0:00:01.9]} 59. Qf5 {[%clk 0:00:16.2]} 59... Kb4 {[%clk 0:00:01.3]} 60.
Qb1+ {[%clk 0:00:14.5]} 1-0